{"text_format":"1","workbook":"xlsx","n_sheets":2,"sheets":["Sheet1","Sheet2"],"not_rendered":{"charts":0,"images":0,"macros":1,"external_links":0,"defined_names":0,"comments":0,"pivot_tables":0},"unopened":[],"bounds":{"document_bytes":16777216,"sheet_cells":100000,"rows_first":2000,"rows_last":500,"rows_between":2000,"halvings":0,"cell_chars":16384,"cell_head_chars":4096},"cells_cut":0,"cells_raw":0,"read":"whole","date_system":"1900"}

{"sheet":"Sheet1","index":0,"n_rows":15,"n_cols":9,"rows_kept":15,"cut":false,"hidden":false,"merged":[[14,0,17,3]]}
["LOCATION","FROM","TO","اسم الجهاز ","تاريخ اليوم"]
[1,150,200,{"$f":"CELL(\"filename\",A2)","v":"C:\\Users\\Ali Mohamed\\Desktop\\[معرفة اسم مستخدم الجهاز.xlsm]Sheet1"},{"$f":"IF(D2=\"\",\"\",TODAY())","v":"2018-10-13"},"Ali Mohamed",{"$f":"INFO(\"DIRECTORY\")","v":"C:\\Users\\Ali Mohamed\\Documents\\"},{"$f":"GetWindowsUser()","v":"Ali Mohamed"},{"$f":"GetExcelUser()","v":"Ali Mohamed"}]
[2,200,250,{"$f":"Username()","v":"Ali Mohamed"},{"$f":"IF(D3=\"\",\"\",TODAY())","v":"2018-10-13"},"Ali Mohamed",{"$f":"INFO(\"DIRECTORY\")","v":"C:\\Users\\Ali Mohamed\\Documents\\"},{"$f":"GetWindowsUser()","v":"Ali Mohamed"},{"$f":"GetExcelUser()","v":"Ali Mohamed"}]
[3,250,300,{"$f":"Username()","v":"Ali Mohamed"},"2018-10-13","Ali Mohamed","C:\\Users\\Ali Mohamed\\Documents\\","Ali Mohamed","Ali Mohamed"]
[4,300,350,"Ali Mohamed","2018-10-13","Ali Mohamed","C:\\Users\\Ali Mohamed\\Documents\\","Ali Mohamed","Ali Mohamed"]
[5,350,400,"Ali Mohamed","2018-10-13","Ali Mohamed","C:\\Users\\Ali Mohamed\\Documents\\","Ali Mohamed","Ali Mohamed"]
[6,400,450,"Ali Mohamed","2018-10-13","Ali Mohamed","C:\\Users\\Ali Mohamed\\Documents\\","Ali Mohamed","Ali Mohamed"]
[7,450,500,"Ali Mohamed","2018-10-13","Ali Mohamed","C:\\Users\\Ali Mohamed\\Documents\\","Ali Mohamed","Ali Mohamed"]
[8,500,550,"Ali Mohamed","2018-10-13","Ali Mohamed","C:\\Users\\Ali Mohamed\\Documents\\","Ali Mohamed","Ali Mohamed"]
[9,550,600,"Ali Mohamed","2018-10-13","Ali Mohamed","C:\\Users\\Ali Mohamed\\Documents\\","Ali Mohamed","Ali Mohamed"]
[10,600,650,"Ali Mohamed","2018-10-13","Ali Mohamed","C:\\Users\\Ali Mohamed\\Documents\\","Ali Mohamed","Ali Mohamed"]
[11,650,700,"Ali Mohamed","2018-10-13","Ali Mohamed","C:\\Users\\Ali Mohamed\\Documents\\","Ali Mohamed","Ali Mohamed"]
[12,700,750,"Ali Mohamed","2018-10-13","Ali Mohamed","C:\\Users\\Ali Mohamed\\Documents\\","Ali Mohamed","Ali Mohamed"]
[null,null,null,null,null,"Ali Mohamed","C:\\Users\\Ali Mohamed\\Documents\\","Ali Mohamed","Ali Mohamed"]
["عاوز يظهر فى عامود اسم الجهاز بجوار كل صف اسم الجهاز الذى اضاف الصف او عدل علية وبجوارة يوم اداخلة الصف للشيت",null,null,null,null,"Ali Mohamed"]

{"sheet":"Sheet2","index":1,"n_rows":0,"n_cols":0,"rows_kept":0,"cut":false,"hidden":false,"merged":[]}